fUST/lending_fUST_20250811
["ID","MTS","AMOUNT","RATE_DAILY","PERIOD"]
[378600488,1754922473414,5000.0,0.00018,2]
[378600489,1754922473448,5000.0,0.00018,2]
[378600490,1754922473485,1016.64044776,0.00018,2]
[378600491,1754922477161,3983.35955224,0.00018,2]
[378600492,1754922477189,566.42175273,0.00018,2]
[378600493,1754922493292,806.95873706,0.00018601,2]
[378600494,1754922504099,-176.85060378,0.000188,2]
[378600495,1754922504122,-39.01514424,0.00018873,2]
[378600496,1754922504144,-1545.43384652,0.00018873,2]
[378600497,1754922504166,-836.70040546,0.000189,2]
[378600498,1754922517539,3626.61951021,0.00017,2]
[378600499,1754922517563,5000.0,0.00017,2]
[378600500,1754922517587,5000.0,0.00017,2]
[378600501,1754922517611,5000.0,0.00017,2]
[378600502,1754922517635,5000.0,0.00017,2]
[378600503,1754922517659,5000.0,0.00017,2]
[378600504,1754922517682,5000.0,0.00017,2]
[378600505,1754922517706,2509.09287521,0.00017,2]
[378600506,1754922520323,2490.90712479,0.00018,2]
[378600507,1754922520349,5000.0,0.00018,2]
[378600508,1754922520373,5000.0,0.00018,2]
[378600509,1754922520397,5000.0,0.00018,2]
[378600510,1754922520424,5000.0,0.00018,2]
[378600511,1754922520448,2619.05028082,0.00018,2]
[378600512,1754922521713,372.2757098,0.000149,2]
[378600513,1754922521936,1000.0,0.0001,2]
[378600514,1754922523858,1008.67400938,0.00018601,2]
[378600515,1754922523888,3991.32599062,0.00018601,2]
[378600517,1754922526131,211.31874507,0.00016,2]
[378600518,1754922527514,797.35526431,0.0001,2]
[378600519,1754922527538,5000.0,0.0001,2]
[378600520,1754922527562,5000.0,0.0001,2]
[378600521,1754922527585,5000.0,0.0001,2]
[378600522,1754922527608,1653.43566254,0.0001,2]
[378600523,1754922529116,3346.56433746,0.00017,2]
[378600524,1754922529165,5000.0,0.00017,2]
[378600525,1754922529217,2690.21777973,0.00017,2]
[378600526,1754922532238,2309.78222027,0.00018601,2]
[378600527,1754922532263,1301.059621,0.00018601,2]
[378600528,1754922540311,3698.940379,0.00018601,2]
[378600529,1754922540342,1301.059621,0.00018601,2]
[378600530,1754922552118,200.2359023,0.00017964,2]
[378600531,1754922556530,3498.7044767,0.00018601,2]
[378600532,1754922556554,1501.2955233,0.00018601,2]
[378600533,1754922573087,3498.7044767,0.00018601,2]
[378600534,1754922573114,1501.2955233,0.00018601,2]
[378600538,1754922589175,3498.7044767,0.00018601,2]
[378600539,1754922589201,1501.2955233,0.00018601,2]
[378600541,1754922606053,3498.7044767,0.00018601,2]
[378600542,1754922606077,1501.2955233,0.00018601,2]
[378600546,1754922622013,2076.81751263,0.00018601,2]
[378600593,1754922632429,-717.72688854,0.00018873,2]
[378600595,1754922632441,-1695.61114844,0.00018873,2]
[378600597,1754922632450,-82.1570465,0.000189,2]
[378600600,1754922632466,-32.81098992,0.000189,2]
[378600602,1754922632475,-1200.0,0.00018961,2]
[378600604,1754922632484,-162.46537641,0.00018962,2]
[378600606,1754922632496,-137.53462359,0.00018962,2]
[378600608,1754922632505,-300.0,0.00018962,2]
[378600610,1754922632515,-300.0,0.00018962,2]
[378600612,1754922632524,-9.32782672,0.00018962,2]
[378600614,1754922632535,-290.67217328,0.00018962,2]
[378600617,1754922632545,-300.0,0.00018962,2]
[378600619,1754922632554,-1200.0,0.00018963,2]
[378600621,1754922632563,-340.24,0.00018963,3]
[378600623,1754922632572,-170.12,0.00018963,3]
[378600625,1754922632581,-510.37,0.00018963,3]
[378600627,1754922632590,-50000.0,0.00018963,2]
[378600629,1754922632599,-500.0,0.00018963,2]
[378600631,1754922632610,-450.02453128,0.00018972,2]
[378600633,1754922632619,-165136.06861853,0.00018973,2]
[378600708,1754922633330,-4624.983028,0.00018973,2]
[378600928,1754922638210,-500.0,0.00018962,2]
[378600929,1754922638220,-500.0,0.00018962,2]
[378600930,1754922638229,-500.0,0.00018962,2]
[378600931,1754922638239,-500.0,0.00018962,2]
[378600932,1754922638249,-258.02028402,0.00018962,2]
[378600933,1754922638258,-500.0,0.00018962,2]
[378600934,1754922638268,-500.0,0.00018962,2]
[378600935,1754922638277,-500.0,0.00018962,2]
[378600936,1754922638286,-500.0,0.00018962,2]
[378600937,1754922638295,-500.0,0.00018962,2]
[378600938,1754922638305,-500.0,0.00018962,2]
[378600939,1754922638314,-6755.97911568,0.00018973,2]
[378600940,1754922638334,-65987.65524288,0.00018973,2]
[378600941,1754922638343,-500.0,0.00018973,2]
[378600942,1754922638353,-500.0,0.00018973,2]
[378600943,1754922638362,-500.0,0.00018973,2]
[378600944,1754922638377,-506.09161116,0.00018973,2]
[378600945,1754922638387,-500.0,0.00018973,2]
[378600946,1754922638396,-500.0,0.00018973,2]
[378600947,1754922638406,-500.0,0.00018973,2]
[378600948,1754922638422,-500.0,0.00018973,2]
[378600949,1754922638432,-500.0,0.00018973,2]
[378600950,1754922638443,-500.0,0.00018973,2]
[378600951,1754922638452,-500.0,0.00018973,2]
[378600952,1754922638462,-500.0,0.00018973,2]
[378600953,1754922638471,-500.0,0.00018973,2]
[378600954,1754922638481,-500.0,0.00018973,2]
[378600955,1754922638490,-500.0,0.00018973,2]
[378600956,1754922638500,-500.0,0.00018973,2]
[378600957,1754922638509,-500.0,0.00018973,2]
[378600958,1754922638519,-500.0,0.00018973,2]
[378600959,1754922638528,-500.0,0.00018973,2]
[378600960,1754922638537,-500.68347371,0.00018973,2]
[378600961,1754922638546,-562.97348677,0.00018973,2]
[378600962,1754922638555,-500.0,0.00018973,2]
[378600963,1754922638565,-514.81854937,0.00018973,2]
[378600964,1754922638574,-500.0,0.00018973,2]
[378600965,1754922638584,-500.0,0.00018973,2]
[378600966,1754922638593,-500.0,0.00018973,2]
[378600967,1754922638602,-500.0,0.00018973,2]
[378600968,1754922638611,-7545.76493444,0.00019,2]
[378600969,1754922638621,-1545.43384651,0.00019061,2]
[378600970,1754922638630,-3237.60273232,0.00019135,5]
[378600971,1754922638640,-1717.21468119,0.0001916,2]
[378600972,1754922638649,-151.0,0.00019166,2]
[378600973,1754922638658,-151.0,0.00019166,2]
[378600974,1754922638671,-151.0,0.00019166,2]
[378600975,1754922638680,-151.0,0.00019166,2]
[378600976,1754922638690,-151.0,0.00019166,2]
[378600977,1754922638699,-151.0,0.00019166,2]
[378600978,1754922638710,-151.0,0.00019166,2]
[378600979,1754922638719,-151.0,0.00019166,2]
[378600980,1754922638729,-252.98591811,0.00019166,2]
[378600981,1754922638738,-151.0,0.00019166,2]
[378600982,1754922638747,-250.0,0.00019166,2]
[378600983,1754922638756,-151.0,0.00019166,2]
[378600984,1754922638765,-250.0,0.00019166,2]
[378600985,1754922638774,-250.0,0.00019166,2]
[378600986,1754922638784,-151.0,0.00019166,2]
[378600987,1754922638793,-250.0,0.00019166,2]
[378600988,1754922638803,-151.0,0.00019166,2]
[378600989,1754922638812,-151.0,0.00019166,2]
[378600990,1754922638821,-151.0,0.00019166,2]
[378600991,1754922638830,-151.0,0.00019166,2]
[378600992,1754922638840,-151.0,0.00019166,2]
[378600993,1754922638849,-151.0,0.00019166,2]
[378600994,1754922638858,-211.28046456,0.00019173,2]
[378600995,1754922638868,-500.0,0.00019173,2]
[378600996,1754922638878,-500.8171718,0.00019173,2]
[378600997,1754922638887,-500.0,0.00019173,2]
[378600998,1754922638896,-500.0,0.00019173,2]
[378600999,1754922638906,-500.0,0.00019173,2]
[378601000,1754922638915,-500.0,0.00019173,2]
[378601001,1754922638924,-500.0,0.00019173,2]
[378601002,1754922638933,-500.0,0.00019173,2]
[378601003,1754922638942,-500.0,0.00019173,2]
[378601004,1754922638952,-500.0,0.00019173,2]
[378601005,1754922638961,-501.12569711,0.00019173,2]
[378601006,1754922638970,-500.0,0.00019173,2]
[378601007,1754922638979,-500.0,0.00019173,2]
[378601008,1754922638989,-507.53751155,0.00019173,2]
[378601009,1754922638998,-500.0,0.00019173,2]
[378601010,1754922639007,-500.0,0.00019173,2]
[378601011,1754922639017,-220.72400512,0.00019173,2]
[378601012,1754922639026,-500.0,0.00019173,2]
[378601013,1754922639035,-500.0,0.00019173,2]
[378601014,1754922639044,-500.0,0.00019173,2]
[378601015,1754922639054,-500.0,0.00019173,2]
[378601016,1754922639063,-445.11431374,0.00019173,2]
[378601017,1754922639072,-500.0,0.00019173,2]
[378601018,1754922639081,-500.0,0.00019173,2]
[378601019,1754922639090,-500.0,0.00019173,2]
[378601020,1754922639100,-500.0,0.00019173,2]
[378601021,1754922639109,-500.0,0.00019173,2]
[378601022,1754922639119,-500.0,0.00019173,2]
[378601023,1754922639129,-500.0,0.00019173,2]
[378601024,1754922639138,-500.0,0.00019173,2]
[378601025,1754922639147,-500.0,0.00019173,2]
[378601026,1754922639157,-500.0,0.00019173,2]
[378601027,1754922639168,-500.0,0.00019173,2]
[378601028,1754922639177,-500.0,0.00019173,2]
[378601029,1754922639187,-500.0,0.00019173,2]
[378601030,1754922639197,-526.8803739,0.00019173,2]
[378601031,1754922639206,-500.0,0.00019173,2]
[378601032,1754922639216,-500.0,0.00019173,2]
[378601033,1754922639226,-500.0,0.00019173,2]
[378601034,1754922639235,-500.0,0.00019173,2]
[378601035,1754922639244,-460.0,0.00019178,2]
[378601036,1754922639254,-460.0,0.00019178,2]
[378601037,1754922639263,-460.0,0.00019178,2]
[378601038,1754922639272,-460.0,0.00019178,2]
[378601039,1754922639281,-460.0,0.00019178,2]
[378601040,1754922639291,-460.0,0.00019178,2]
[378601041,1754922639300,-460.78191841,0.00019178,2]
[378601042,1754922639309,-635.53,0.00019178,2]
[378601043,1754922639319,-500.90729538,0.00019178,2]
[378601044,1754922639328,-460.0,0.00019178,2]
[378601045,1754922639337,-460.0,0.00019178,2]
[378601046,1754922639347,-460.0,0.00019178,2]
[378601047,1754922639356,-460.0,0.00019178,2]
[378601048,1754922639367,-460.0,0.00019178,2]
[378601049,1754922639377,-460.0,0.00019178,2]
[378601050,1754922639387,-460.0,0.00019178,2]
[378601051,1754922639396,-460.0,0.00019178,2]
[378601052,1754922639406,-460.0,0.00019178,2]
[378601053,1754922639418,-460.0,0.00019178,2]
[378601054,1754922639428,-460.43440841,0.00019178,2]
[378601055,1754922639438,-460.0,0.00019178,2]
[378601056,1754922639448,-693.64,0.00019178,2]
[378601057,1754922639458,-462.08711173,0.00019178,2]
[378601058,1754922639468,-460.0,0.00019178,2]
[378601059,1754922639478,-460.0,0.00019178,2]
[378601060,1754922639487,-460.0,0.00019178,2]
[378601061,1754922639497,-460.0,0.00019178,2]
[378601062,1754922639507,-460.0,0.00019178,2]
[378601063,1754922639516,-460.0,0.00019178,2]
[378601064,1754922639525,-460.0,0.00019178,2]
[378601065,1754922639535,-460.0,0.00019178,2]
[378601066,1754922639545,-460.0,0.00019178,2]
[378601067,1754922639554,-460.0,0.00019178,2]
[378601068,1754922639564,-460.0,0.00019178,2]
[378601069,1754922639574,-467.98867287,0.00019178,2]
[378601070,1754922639583,-460.0,0.00019178,2]
[378601071,1754922639593,-460.0,0.00019178,2]
[378601072,1754922639602,-460.0,0.00019178,2]
[378601073,1754922639611,-460.0,0.00019178,2]
[378601074,1754922639621,-460.0,0.00019178,2]
[378601075,1754922639630,-460.0,0.00019178,2]
[378601076,1754922639639,-460.0,0.00019178,2]
[378601077,1754922639649,-460.0,0.00019178,2]
[378601078,1754922639658,-460.0,0.00019178,2]
[378601079,1754922639669,-460.0,0.00019178,2]
[378601080,1754922639679,-593.05420828,0.00019178,2]
[378601081,1754922639689,-396.68883519,0.00019178,2]
[378601082,1754922639699,-460.0,0.00019178,2]
[378601083,1754922639709,-460.0,0.00019178,2]
[378601084,1754922639718,-460.0,0.00019178,2]
[378601085,1754922639728,-460.0,0.00019178,2]
[378601086,1754922639738,-460.0,0.00019178,2]
[378601087,1754922639747,-501.54918664,0.00019178,2]
[378601088,1754922639757,-460.0,0.00019178,2]
[378601089,1754922639766,-1000.0,0.00019178,2]
[378601090,1754922639776,-680.05,0.00019178,2]
[378601091,1754922639786,-460.0,0.00019178,2]
[378601092,1754922639795,-569.52717049,0.00019178,2]
[378601093,1754922639806,-460.0,0.00019178,2]
[378601094,1754922639815,-460.0,0.00019178,2]
[378601095,1754922639824,-460.0,0.00019178,2]
[378601096,1754922639834,-460.0,0.00019178,2]
[378601097,1754922639843,-461.68189417,0.00019178,2]
[378601098,1754922639852,-461.48970758,0.00019178,2]
[378601099,1754922639862,-436.50300604,0.00019178,2]
[378601100,1754922639871,-460.0,0.00019178,2]
[378601101,1754922639881,-460.0,0.00019178,2]
[378601102,1754922639890,-460.0,0.00019178,2]
[378601103,1754922639900,-460.0,0.00019178,2]
[378601104,1754922640101,-247.86691074,0.00019178,2]
[378601105,1754922640112,-460.86815289,0.00019178,2]
[378601106,1754922640121,-500.0,0.00019178,2]
[378601107,1754922640131,-460.61577241,0.00019178,2]
[378601108,1754922640140,-460.0,0.00019178,2]
[378601109,1754922640149,-460.0,0.00019178,2]
[378601110,1754922640158,-460.0,0.00019178,2]
[378601111,1754922640169,-460.0,0.00019178,2]
[378601112,1754922640178,-460.0,0.00019178,2]
[378601113,1754922640188,-460.0,0.00019178,2]
[378601114,1754922640198,-460.0,0.00019178,2]
[378601115,1754922640208,-460.0,0.00019178,2]
[378601116,1754922640217,-460.0,0.00019178,2]
[378601117,1754922640227,-460.0,0.00019178,2]
[378601118,1754922640236,-308.41744203,0.00019178,2]
[378601119,1754922640245,-460.0,0.00019178,2]
[378601120,1754922640257,-460.0,0.00019178,2]
[378601121,1754922640266,-460.0,0.00019178,2]
[378601122,1754922640275,-460.0,0.00019178,2]
[378601123,1754922640285,-460.0,0.00019178,2]
[378601124,1754922640295,-460.0,0.00019178,2]
[378601125,1754922640304,-460.0,0.00019178,2]
[378601126,1754922640314,-460.0,0.00019178,2]
[378601127,1754922640323,-460.0,0.00019178,2]
[378601128,1754922640332,-361.08311554,0.00019178,2]
[378601129,1754922640342,-460.0,0.00019178,2]
[378601130,1754922640351,-485.52889551,0.00019178,2]
[378601131,1754922640361,-460.0,0.00019178,2]
[378601132,1754922640375,-460.0,0.00019178,2]
[378601133,1754922640385,-460.0,0.00019178,2]
[378601134,1754922640394,-541.57,0.00019178,2]
[378601135,1754922640403,-460.0,0.00019178,2]
[378601136,1754922640415,-460.0,0.00019178,2]
[378601137,1754922640424,-460.0,0.00019178,2]
[378601138,1754922640433,-400.0,0.00019178,2]
[378601139,1754922640443,-460.0,0.00019178,2]
[378601140,1754922640452,-492.5,0.00019178,2]
[378601141,1754922640463,-460.0,0.00019178,2]
[378601142,1754922640473,-460.0,0.00019178,2]
[378601143,1754922640481,-460.0,0.00019178,2]
[378601144,1754922640491,-460.0,0.00019178,2]
[378601145,1754922640500,-460.0,0.00019178,2]
[378601146,1754922640509,-460.0,0.00019178,2]
[378601147,1754922640519,-460.0,0.00019178,2]
[378601148,1754922640528,-460.0,0.00019178,2]
[378601149,1754922640537,-460.0,0.00019178,2]
[378601150,1754922640547,-1116.17,0.00019178,2]
[378601151,1754922640556,-460.0,0.00019178,2]
[378601152,1754922640566,-460.0,0.00019178,2]
[378601153,1754922640575,-1080.87,0.00019178,2]
[378601154,1754922640584,-460.0,0.00019178,2]
[378601155,1754922640594,-460.0,0.00019178,2]
[378601156,1754922640603,-460.0,0.00019178,2]
[378601157,1754922640612,-262.48677597,0.00019178,2]
[378601158,1754922640621,-460.0,0.00019178,2]
[378601159,1754922640631,-460.0,0.00019178,2]
[378601160,1754922640640,-460.0,0.00019178,2]
[378601161,1754922640649,-460.0,0.00019178,2]
[378601162,1754922640658,-460.0,0.00019178,2]
[378601163,1754922640669,-746.37,0.00019178,2]
[378601164,1754922640678,-460.0,0.00019178,2]
[378601165,1754922640688,-460.0,0.00019178,2]
[378601166,1754922640697,-460.0,0.00019178,2]
[378601167,1754922640706,-604.93,0.00019178,2]
[378601168,1754922640716,-469.63287938,0.00019178,2]
[378601169,1754922640725,-460.0,0.00019178,2]
[378601170,1754922640734,-460.0,0.00019178,2]
[378601171,1754922640743,-292.07696659,0.00019178,2]
[378601172,1754922640752,-629.12,0.00019178,2]
[378601173,1754922640761,-509.99994878,0.00019178,2]
[378601174,1754922640771,-460.0,0.00019178,2]
[378601175,1754922640780,-204.753215,0.00019178,2]
[378601176,1754922640790,-476.81930231,0.00019178,2]
[378601177,1754922640800,-1264.43,0.00019178,2]
[378601178,1754922640809,-460.0,0.00019178,2]
[378601179,1754922640818,-460.0,0.00019178,2]
[378601180,1754922640828,-460.0,0.00019178,2]
[378601181,1754922640837,-460.0,0.00019178,2]
[378601182,1754922640847,-736.79,0.00019178,2]
[378601183,1754922640856,-460.0,0.00019178,2]
[378601184,1754922640866,-460.0,0.00019178,2]
[378601185,1754922640875,-440.84893175,0.00019178,2]
[378601186,1754922640885,-460.0,0.00019178,2]
[378601187,1754922640894,-460.0,0.00019178,2]
[378601188,1754922640904,-460.0,0.00019178,2]
[378601189,1754922640913,-460.0,0.00019178,2]
[378601190,1754922640923,-460.0,0.00019178,2]
[378601191,1754922640932,-613.5,0.00019178,2]
[378601192,1754922640942,-460.0,0.00019178,2]
[378601193,1754922640951,-645.86,0.00019178,2]
[378601194,1754922640961,-460.0,0.00019178,2]
[378601195,1754922640970,-463.15122904,0.00019178,2]
[378601196,1754922640979,-460.0,0.00019178,2]
[378601197,1754922640988,-460.0,0.00019178,2]
[378601198,1754922640997,-460.0,0.00019178,2]
[378601199,1754922641007,-460.0,0.00019178,2]
[378601200,1754922641016,-183.79375977,0.00019178,2]
[378601201,1754922641025,-460.0,0.00019178,2]
[378601202,1754922641034,-931.87,0.00019178,2]
[378601203,1754922641043,-460.0,0.00019178,2]
[378601204,1754922641053,-460.0,0.00019178,2]
[378601205,1754922641062,-460.0,0.00019178,2]
[378601206,1754922641071,-478.67,0.00019178,2]
[378601207,1754922641081,-460.0,0.00019178,2]
[378601208,1754922641090,-460.0,0.00019178,2]
[378601209,1754922641099,-578.17185651,0.00019178,2]
[378601210,1754922641108,-460.0,0.00019178,2]
[378601211,1754922641117,-460.0,0.00019178,2]
[378601212,1754922641127,-460.0,0.00019178,2]
[378601213,1754922641136,-551.59,0.00019178,2]
[378601214,1754922641145,-460.0,0.00019178,2]
[378601215,1754922641154,-460.0,0.00019178,2]
[378601216,1754922641164,-460.0,0.00019178,2]
[378601217,1754922641175,-460.0,0.00019178,2]
[378601218,1754922641185,-460.0,0.00019178,2]
[378601219,1754922641194,-460.0,0.00019178,2]
[378601220,1754922641203,-460.0,0.00019178,2]
[378601221,1754922641212,-460.0,0.00019178,2]
[378601222,1754922641222,-545.98,0.00019178,2]
[378601223,1754922641231,-460.0,0.00019178,2]
[378601224,1754922641241,-460.0,0.00019178,2]
[378601225,1754922641250,-460.0,0.00019178,2]
[378601226,1754922641263,-460.0,0.00019178,2]
[378601227,1754922641273,-460.0,0.00019178,2]
[378601228,1754922641282,-460.0,0.00019178,2]
[378601229,1754922641292,-460.0,0.00019178,2]
[378601230,1754922641301,-460.0,0.00019178,2]
[378601231,1754922641311,-460.0,0.00019178,2]
[378601232,1754922641321,-460.0,0.00019178,2]
[378601233,1754922641331,-460.0,0.00019178,2]
[378601234,1754922641340,-286.84872159,0.00019178,2]
[378601235,1754922641350,-460.0,0.00019178,2]
[378601236,1754922641359,-460.0,0.00019178,2]
[378601237,1754922641371,-162.9432916,0.00019178,2]
[378601238,1754922641381,-460.0,0.00019178,2]
[378601239,1754922641389,-460.0,0.00019178,2]
[378601240,1754922641399,-460.0,0.00019178,2]
[378601241,1754922641408,-460.0,0.00019178,2]
[378601242,1754922641420,-155.99601206,0.00019178,2]
[378601243,1754922641429,-760.71,0.00019178,2]
[378601244,1754922641439,-460.0,0.00019178,2]
[378601245,1754922641448,-460.0,0.00019178,2]
[378601246,1754922641458,-460.0,0.00019178,2]
[378601247,1754922641467,-460.0,0.00019178,2]
[378601248,1754922641477,-460.0,0.00019178,2]
[378601249,1754922641486,-460.0,0.00019178,2]
[378601250,1754922641495,-460.0,0.00019178,2]
[378601251,1754922641504,-460.0,0.00019178,2]
[378601252,1754922641513,-460.0,0.00019178,2]
[378601253,1754922641523,-460.0,0.00019178,2]
[378601254,1754922641533,-995.49,0.00019178,2]
[378601255,1754922641542,-183.85267059,0.00019178,2]
[378601256,1754922641551,-460.0,0.00019178,2]
[378601257,1754922641560,-545.77,0.00019178,2]
[378601258,1754922641569,-460.0,0.00019178,2]
[378601259,1754922641578,-460.0,0.00019178,2]
[378601260,1754922641587,-460.0,0.00019178,2]
[378601261,1754922641596,-460.0,0.00019178,2]
[378601262,1754922641606,-776.92,0.00019178,2]
[378601263,1754922641616,-1182.49,0.00019178,2]
[378601264,1754922641626,-630.77,0.00019178,2]
[378601265,1754922641636,-460.0,0.00019178,2]
[378601266,1754922641645,-460.0,0.00019178,2]
[378601267,1754922641655,-460.0,0.00019178,2]
[378601268,1754922641664,-460.0,0.00019178,2]
[378601269,1754922641675,-349.09367205,0.00019178,2]
[378601270,1754922641685,-460.0,0.00019178,2]
[378601271,1754922641694,-460.0,0.00019178,2]
[378601272,1754922641704,-460.0,0.00019178,2]
[378601273,1754922641714,-468.5,0.00019178,2]
[378601274,1754922641723,-460.0,0.00019178,2]
[378601275,1754922641732,-460.0,0.00019178,2]
[378601276,1754922641742,-460.0,0.00019178,2]
[378601277,1754922641751,-460.0,0.00019178,2]
[378601278,1754922641761,-497.87,0.00019178,2]
[378601279,1754922641770,-460.0,0.00019178,2]
[378601280,1754922641780,-460.0,0.00019178,2]
[378601281,1754922641789,-563.35,0.00019178,2]
[378601282,1754922641799,-460.0,0.00019178,2]
[378601283,1754922641808,-460.0,0.00019178,2]
[378601284,1754922641818,-460.0,0.00019178,2]
[378601285,1754922641827,-460.0,0.00019178,2]
[378601286,1754922641837,-1366.98,0.00019178,2]
[378601287,1754922641846,-460.0,0.00019178,2]
[378601288,1754922641855,-460.0,0.00019178,2]
[378601289,1754922641865,-789.71,0.00019178,2]
[378601290,1754922641874,-460.0,0.00019178,2]
[378601291,1754922641884,-460.0,0.00019178,2]
[378601292,1754922641893,-460.0,0.00019178,2]
[378601293,1754922641903,-460.0,0.00019178,2]
[378601294,1754922641913,-460.0,0.00019178,2]
[378601295,1754922641924,-476.84959041,0.00019178,2]
[378601296,1754922641933,-460.0,0.00019178,2]
[378601297,1754922641943,-717.79,0.00019178,2]
[378601298,1754922641953,-460.0,0.00019178,2]
[378601299,1754922641963,-460.0,0.00019178,2]
[378601300,1754922641973,-462.14163462,0.00019178,2]
[378601301,1754922641984,-1430.31,0.00019178,2]
[378601302,1754922641995,-460.0,0.00019178,2]
[378601303,1754922642005,-460.0,0.00019178,2]
[378601304,1754922642014,-460.0,0.00019178,2]
[378601305,1754922642024,-1236.46,0.00019178,2]
[378601306,1754922642034,-762.44,0.00019178,2]
[378601307,1754922642043,-460.0,0.00019178,2]
[378601308,1754922642052,-1717.65,0.00019178,2]
[378601309,1754922642061,-460.0,0.00019178,2]
[378601310,1754922642071,-460.0,0.00019178,2]
[378601311,1754922642080,-777.25,0.00019178,2]
[378601312,1754922642089,-460.0,0.00019178,2]
[378601313,1754922642099,-460.0,0.00019178,2]
[378601314,1754922642108,-460.0,0.00019178,2]
[378601315,1754922642118,-460.0,0.00019178,2]
[378601316,1754922642128,-460.0,0.00019178,2]
[378601317,1754922642137,-460.0,0.00019178,2]
[378601318,1754922642147,-460.0,0.00019178,2]
[378601319,1754922642156,-540.73,0.00019178,2]
[378601320,1754922642166,-460.0,0.00019178,2]
[378601321,1754922642176,-460.0,0.00019178,2]
[378601322,1754922642185,-460.0,0.00019178,2]
[378601323,1754922642195,-281.13136386,0.00019178,2]
[378601324,1754922642204,-460.0,0.00019178,2]
[378601325,1754922642214,-460.0,0.00019178,2]
[378601326,1754922642224,-460.0,0.00019178,2]
[378601327,1754922642234,-529.95,0.00019178,2]
[378601328,1754922642244,-460.0,0.00019178,2]
[378601329,1754922642254,-392.74432696,0.00019178,2]
[378601330,1754922642263,-460.0,0.00019178,2]
[378601331,1754922642272,-460.0,0.00019178,2]
[378601332,1754922642282,-460.0,0.00019178,2]
[378601333,1754922642291,-298.73074238,0.00019178,2]
[378601334,1754922642301,-460.0,0.00019178,2]
[378601335,1754922642310,-500.0,0.00019178,2]
[378601336,1754922642320,-500.0,0.00019178,2]
[378601337,1754922642329,-500.0,0.00019178,2]
[378601338,1754922642338,-460.0,0.00019178,2]
[378601339,1754922642347,-500.0,0.00019178,2]
[378601340,1754922642357,-500.0,0.00019178,2]
[378601341,1754922642368,-500.0,0.00019178,2]
[378601342,1754922642379,-500.0,0.00019178,2]
[378601343,1754922642389,-500.0,0.00019178,2]
[378601344,1754922642398,-500.0,0.00019178,2]
[378601345,1754922642407,-500.0,0.00019178,2]
[378601346,1754922642417,-241.92,0.00019178,2]
[378601347,1754922642427,-460.0,0.00019178,2]
[378601348,1754922642436,-460.0,0.00019178,2]
[378601349,1754922642446,-209.71533044,0.00019178,2]
[378601350,1754922642455,-460.0,0.00019178,2]
[378601351,1754922642464,-704.95,0.00019178,2]
[378601352,1754922642474,-460.0,0.00019178,2]
[378601353,1754922642483,-460.0,0.00019178,2]
[378601354,1754922642493,-460.0,0.00019178,2]
[378601355,1754922642502,-460.0,0.00019178,2]